[Event "Early-Titled-Tuesday-Blitz-October-10-2023"]
[Site "Chess.com"]
[Date "2023.10.10"]
[Round "1"]
[White "Zurability"]
[Black "Balla_Tamas"]
[Result "1-0"]
[WhiteElo "2743"]
[BlackElo "2430"]
[TimeControl "180+1"]
[EndTime "8:07:56 PDT"]
[Termination "Zurability won on time"]

1. Nf3 {[%clk 0:03:00.9]} 1... c5 {[%clk 0:02:59.6]} 2. g3 {[%clk 0:03:00.1]}
2... Nc6 {[%clk 0:02:59.3]} 3. Bg2 {[%clk 0:02:54.9]} 3... g6 {[%clk 0:02:59.8]}
4. O-O {[%clk 0:02:55.2]} 4... Bg7 {[%clk 0:03:00.3]} 5. c4 {[%clk 0:02:55.5]}
5... e6 {[%clk 0:02:58.7]} 6. Nc3 {[%clk 0:02:46.9]} 6... Nge7 {[%clk
0:02:58.7]} 7. d4 {[%clk 0:02:47.4]} 7... cxd4 {[%clk 0:02:57.9]} 8. Nb5 {[%clk
0:02:47.9]} 8... d5 {[%clk 0:02:58.2]} 9. cxd5 {[%clk 0:02:45.8]} 9... Nxd5
{[%clk 0:02:50.8]} 10. Nbxd4 {[%clk 0:02:38.5]} 10... Nxd4 {[%clk 0:02:46.8]}
11. Nxd4 {[%clk 0:02:39.4]} 11... O-O {[%clk 0:02:46.5]} 12. Nb3 {[%clk
0:02:30.5]} 12... b6 {[%clk 0:02:39]} 13. e4 {[%clk 0:02:20.6]} 13... Ne7 {[%clk
0:02:30.1]} 14. Bg5 {[%clk 0:02:16.1]} 14... f6 {[%clk 0:02:00.2]} 15. Be3
{[%clk 0:02:10.8]} 15... Bb7 {[%clk 0:01:56.1]} 16. Qe2 {[%clk 0:02:09.2]} 16...
Kh8 {[%clk 0:01:50.5]} 17. Nd4 {[%clk 0:02:02.6]} 17... Qd7 {[%clk 0:01:39.2]}
18. Rfd1 {[%clk 0:02:01.4]} 18... e5 {[%clk 0:01:35.7]} 19. Nb5 {[%clk
0:01:46.5]} 19... Qc8 {[%clk 0:00:46.2]} 20. Rac1 {[%clk 0:01:18.6]} 20... Nc6
{[%clk 0:00:36.3]} 21. Nd6 {[%clk 0:01:15.8]} 21... Qc7 {[%clk 0:00:30.7]} 22.
Qc4 {[%clk 0:00:55.9]} 22... Rad8 {[%clk 0:00:30.5]} 23. Nb5 {[%clk 0:00:43.1]}
23... Qe7 {[%clk 0:00:22.4]} 24. Nc3 {[%clk 0:00:41.4]} 24... Rxd1+ {[%clk
0:00:21.9]} 25. Rxd1 {[%clk 0:00:41.2]} 25... Rd8 {[%clk 0:00:21.7]} 26. Rxd8+
{[%clk 0:00:39.5]} 26... Qxd8 {[%clk 0:00:22.6]} 27. h4 {[%clk 0:00:36]} 27...
Na5 {[%clk 0:00:22.8]} 28. Qf7 {[%clk 0:00:31.8]} 28... Qf8 {[%clk 0:00:20.1]}
29. Qd7 {[%clk 0:00:29.7]} 29... Qc8 {[%clk 0:00:14.7]} 30. Qd1 {[%clk
0:00:25.3]} 30... h6 {[%clk 0:00:14.2]} 31. h5 {[%clk 0:00:25.1]} 31... g5
{[%clk 0:00:14.2]} 32. Bf3 {[%clk 0:00:25.7]} 32... Kh7 {[%clk 0:00:14.4]} 33.
Bg4 {[%clk 0:00:25.8]} 33... Qe8 {[%clk 0:00:12.4]} 34. Bf5+ {[%clk 0:00:25.9]}
34... Kh8 {[%clk 0:00:12.7]} 35. Bg6 {[%clk 0:00:26.1]} 35... Qc8 {[%clk
0:00:13]} 36. Nd5 {[%clk 0:00:22.6]} 36... Bxd5 {[%clk 0:00:11.9]} 37. exd5
{[%clk 0:00:17.3]} 37... Nc4 {[%clk 0:00:12.6]} 38. d6 {[%clk 0:00:17.6]} 38...
Qd7 {[%clk 0:00:12]} 39. Qd5 {[%clk 0:00:14.4]} 39... Nxd6 {[%clk 0:00:10.8]}
40. Qa8+ {[%clk 0:00:09.8]} 40... Nc8 {[%clk 0:00:11.4]} 41. Qe4 {[%clk
0:00:04.9]} 41... Bf8 {[%clk 0:00:11.5]} 42. Bf5 {[%clk 0:00:04.9]} 42... Qc7
{[%clk 0:00:11.3]} 43. Qa8 {[%clk 0:00:03.6]} 43... Kg7 {[%clk 0:00:03.6]} 44.
Qxc8 {[%clk 0:00:03.4]} 44... Qxc8 {[%clk 0:00:04.3]} 45. Bxc8 {[%clk
0:00:04.3]} 45... Bc5 {[%clk 0:00:04.9]} 46. Bf5 {[%clk 0:00:04.6]} 46... Bd6
{[%clk 0:00:03.2]} 47. Kf1 {[%clk 0:00:04.8]} 47... Kf7 {[%clk 0:00:03.9]} 48.
Ke2 {[%clk 0:00:05.3]} 48... Ke7 {[%clk 0:00:04.5]} 49. Kd3 {[%clk 0:00:06]}
49... Bb4 {[%clk 0:00:04.9]} 50. Ke4 {[%clk 0:00:06]} 50... Kd6 {[%clk 0:00:05]}
51. Bg4 {[%clk 0:00:06.1]} 51... a5 {[%clk 0:00:04.9]} 52. Kf5 {[%clk
0:00:06.5]} 52... Ke7 {[%clk 0:00:04.9]} 53. Kg6 {[%clk 0:00:07.1]} 1-0

[Event "Early-Titled-Tuesday-Blitz-October-10-2023"]
[Site "Chess.com"]
[Date "2023.10.10"]
[Round "1"]
[White "FontVella8"]
[Black "LuisFSiles"]
[Result "1/2-1/2"]
[WhiteElo "2612"]
[BlackElo "2315"]
[TimeControl "180+1"]
[EndTime "8:07:56 PDT"]
[Termination "Game drawn by repetition"]

1. e4 {[%clk 0:02:57.7]} 1... c5 {[%clk 0:02:58.8]} 2. Nf3 {[%clk 0:02:56]} 2...
Nc6 {[%clk 0:02:58.8]} 3. d4 {[%clk 0:02:56.2]} 3... cxd4 {[%clk 0:02:58.8]} 4.
Nxd4 {[%clk 0:02:57.1]} 4... Nf6 {[%clk 0:02:59.1]} 5. Nc3 {[%clk 0:02:57.2]}
5... e5 {[%clk 0:02:59.8]} 6. Ndb5 {[%clk 0:02:57.4]} 6... d6 {[%clk 0:03:00.5]}
7. Bg5 {[%clk 0:02:57.6]} 7... a6 {[%clk 0:03:01.2]} 8. Na3 {[%clk 0:02:56]}
8... b5 {[%clk 0:03:01.6]} 9. Bxf6 {[%clk 0:02:56.4]} 9... gxf6 {[%clk
0:03:01.5]} 10. Nd5 {[%clk 0:02:56.3]} 10... f5 {[%clk 0:03:02.1]} 11. g3 {[%clk
0:02:56.4]} 11... h5 {[%clk 0:03:00.8]} 12. Bg2 {[%clk 0:02:51.3]} 12... f4
{[%clk 0:02:58.2]} 13. c3 {[%clk 0:02:42.9]} 13... h4 {[%clk 0:02:53.8]} 14.
gxf4 {[%clk 0:02:31.3]} 14... h3 {[%clk 0:02:51.1]} 15. Bf3 {[%clk 0:02:30.4]}
15... exf4 {[%clk 0:02:50.6]} 16. Qd2 {[%clk 0:02:26.7]} 16... Ne5 {[%clk
0:02:45.3]} 17. Be2 {[%clk 0:02:17.4]} 17... Bh6 {[%clk 0:02:31.1]} 18. f3
{[%clk 0:01:18]} 18... Qh4+ {[%clk 0:02:23.1]} 19. Kd1 {[%clk 0:01:17.8]} 19...
O-O {[%clk 0:01:55.7]} 20. Rg1+ {[%clk 0:00:59.1]} 20... Kh8 {[%clk 0:01:52.7]}
21. Qe1 {[%clk 0:00:52]} 21... Qd8 {[%clk 0:01:37.6]} 22. Nc2 {[%clk 0:00:49.9]}
22... Be6 {[%clk 0:01:36]} 23. Nd4 {[%clk 0:00:47.1]} 23... Rg8 {[%clk
0:01:22.1]} 24. Rxg8+ {[%clk 0:00:42.3]} 24... Kxg8 {[%clk 0:00:58.6]} 25. Kc2
{[%clk 0:00:40.7]} 25... Rc8 {[%clk 0:00:37.7]} 26. a3 {[%clk 0:00:38.2]} 26...
Nc6 {[%clk 0:00:31]} 27. Qg1+ {[%clk 0:00:33.8]} 27... Kh7 {[%clk 0:00:25.6]}
28. Nxc6 {[%clk 0:00:19.2]} 28... Rxc6 {[%clk 0:00:26.5]} 29. Qd4 {[%clk
0:00:19.4]} 29... Bg7 {[%clk 0:00:23.4]} 30. Qd2 {[%clk 0:00:19.5]} 30... Rc5
{[%clk 0:00:20.9]} 31. Rg1 {[%clk 0:00:18.5]} 31... Bxd5 {[%clk 0:00:19.8]} 32.
exd5 {[%clk 0:00:18.6]} 32... Qf6 {[%clk 0:00:20.2]} 33. Bd3+ {[%clk 0:00:15.7]}
33... Kh8 {[%clk 0:00:17.8]} 34. Qe2 {[%clk 0:00:15.3]} 34... Qe5 {[%clk
0:00:16.4]} 35. Qxe5 {[%clk 0:00:05.2]} 35... Bxe5 {[%clk 0:00:16.5]} 36. Be4
{[%clk 0:00:04.1]} 36... a5 {[%clk 0:00:16.7]} 37. Rg4 {[%clk 0:00:03.5]} 37...
b4 {[%clk 0:00:16.1]} 38. axb4 {[%clk 0:00:03.9]} 38... axb4 {[%clk 0:00:15.5]}
39. c4 {[%clk 0:00:03.5]} 39... Rxc4+ {[%clk 0:00:15]} 40. Kb3 {[%clk
0:00:04.3]} 40... Rd4 {[%clk 0:00:14.2]} 41. Rh4+ {[%clk 0:00:04.5]} 41... Kg7
{[%clk 0:00:14.1]} 42. Rxh3 {[%clk 0:00:05.2]} 42... Rd2 {[%clk 0:00:14.4]} 43.
Rh7+ {[%clk 0:00:04.5]} 43... Kf6 {[%clk 0:00:13.3]} 44. Rh6+ {[%clk 0:00:03.7]}
44... Ke7 {[%clk 0:00:13.3]} 45. Kxb4 {[%clk 0:00:03.2]} 45... Rxb2+ {[%clk
0:00:13.2]} 46. Ka3 {[%clk 0:00:03.8]} 46... Rb8 {[%clk 0:00:12.5]} 47. Rh7
{[%clk 0:00:03.7]} 47... Rh8 {[%clk 0:00:12]} 48. Rxh8 {[%clk 0:00:02.8]} 48...
Bxh8 {[%clk 0:00:12.2]} 49. Kb4 {[%clk 0:00:03]} 49... Kf6 {[%clk 0:00:09.6]}
50. Kb5 {[%clk 0:00:02.4]} 50... Kg5 {[%clk 0:00:09.9]} 51. Kc6 {[%clk
0:00:02.9]} 51... Be5 {[%clk 0:00:10.2]} 52. Kd7 {[%clk 0:00:03.3]} 52... Kh4
{[%clk 0:00:10.5]} 53. Ke7 {[%clk 0:00:03.9]} 53... Kh3 {[%clk 0:00:10.5]} 54.
Kxf7 {[%clk 0:00:04]} 54... Kxh2 {[%clk 0:00:11]} 55. Ke6 {[%clk 0:00:04.9]}
55... Kg1 {[%clk 0:00:11.1]} 56. Kf5 {[%clk 0:00:05.8]} 56... Kf2 {[%clk
0:00:11.4]} 57. Kg4 {[%clk 0:00:06.5]} 57... Ke3 {[%clk 0:00:12]} 58. Kf5 {[%clk
0:00:07.3]} 58... Kd4 {[%clk 0:00:12.6]} 59. Kg4 {[%clk 0:00:08.2]} 59... Ke3
{[%clk 0:00:13.3]} 60. Kf5 {[%clk 0:00:09.1]} 60... Kd4 {[%clk 0:00:13.7]} 61.
Kg4 {[%clk 0:00:10]} 61... Ke3 {[%clk 0:00:14.1]} 1/2-1/2

[Event "Early-Titled-Tuesday-Blitz-October-10-2023"]
[Site "Chess.com"]
[Date "2023.10.10"]
[Round "1"]
[White "alexrustemov"]
[Black "Herzog2012"]
[Result "1/2-1/2"]
[WhiteElo "2864"]
[BlackElo "2496"]
[TimeControl "180+1"]
[EndTime "8:07:58 PDT"]
[Termination "Game drawn - insufficient material"]

1. d4 {[%clk 0:03:00.9]} 1... Nf6 {[%clk 0:03:00]} 2. c4 {[%clk 0:03:01.5]} 2...
e6 {[%clk 0:03:00.4]} 3. Nf3 {[%clk 0:03:02.1]} 3... b6 {[%clk 0:03:00.7]} 4. a3
{[%clk 0:03:01.5]} 4... Ba6 {[%clk 0:02:58.7]} 5. Qc2 {[%clk 0:03:00.7]} 5... d5
{[%clk 0:02:36]} 6. cxd5 {[%clk 0:02:59.3]} 6... exd5 {[%clk 0:02:35.2]} 7. Bg5
{[%clk 0:02:59.6]} 7... Be7 {[%clk 0:02:09.6]} 8. Nc3 {[%clk 0:02:59.7]} 8...
O-O {[%clk 0:02:06.9]} 9. g3 {[%clk 0:02:59.7]} 9... c6 {[%clk 0:02:06.1]} 10.
Bg2 {[%clk 0:02:59.8]} 10... Nbd7 {[%clk 0:02:05.4]} 11. O-O {[%clk 0:02:58]}
11... Bb7 {[%clk 0:02:02.2]} 12. Rfd1 {[%clk 0:02:54.1]} 12... Re8 {[%clk
0:01:57.9]} 13. Rac1 {[%clk 0:02:53.5]} 13... Rc8 {[%clk 0:01:57.2]} 14. Bh3
{[%clk 0:02:52.4]} 14... Ra8 {[%clk 0:01:42.2]} 15. b4 {[%clk 0:02:38]} 15... b5
{[%clk 0:01:35.5]} 16. Ne5 {[%clk 0:02:31.5]} 16... Nxe5 {[%clk 0:01:20]} 17.
dxe5 {[%clk 0:02:31.4]} 17... Nd7 {[%clk 0:01:18.1]} 18. Bxe7 {[%clk 0:02:27.8]}
18... Qxe7 {[%clk 0:01:17.5]} 19. f4 {[%clk 0:02:27.8]} 19... a5 {[%clk
0:01:12.2]} 20. e4 {[%clk 0:02:27.8]} 20... axb4 {[%clk 0:01:09.8]} 21. axb4
{[%clk 0:02:27.1]} 21... Nb6 {[%clk 0:01:09.5]} 22. exd5 {[%clk 0:02:23.1]}
22... cxd5 {[%clk 0:01:04.4]} 23. Nxb5 {[%clk 0:02:16.3]} 23... Qxb4 {[%clk
0:00:38.8]} 24. Qc5 {[%clk 0:02:15.4]} 24... Qxc5+ {[%clk 0:00:35.7]} 25. Rxc5
{[%clk 0:02:16.3]} 25... Ra5 {[%clk 0:00:32.7]} 26. Rc7 {[%clk 0:01:53.2]} 26...
Rxb5 {[%clk 0:00:29.8]} 27. Rxb7 {[%clk 0:01:53.7]} 27... g6 {[%clk 0:00:21.1]}
28. Bf1 {[%clk 0:01:46.1]} 28... Rb2 {[%clk 0:00:18.1]} 29. Rxd5 {[%clk
0:01:44.1]} 29... Nxd5 {[%clk 0:00:14.7]} 30. Rxb2 {[%clk 0:01:45]} 30... Rc8
{[%clk 0:00:14.8]} 31. Kf2 {[%clk 0:01:38.1]} 31... Nc3 {[%clk 0:00:14.7]} 32.
Kf3 {[%clk 0:01:33.2]} 32... Na4 {[%clk 0:00:12.3]} 33. Rb3 {[%clk 0:01:18.7]}
33... Rc1 {[%clk 0:00:11.3]} 34. Bb5 {[%clk 0:01:13.4]} 34... Nc5 {[%clk
0:00:11.7]} 35. Ra3 {[%clk 0:01:11.5]} 35... Rc2 {[%clk 0:00:11.5]} 36. h3
{[%clk 0:01:10.8]} 36... h5 {[%clk 0:00:11.5]} 37. Be2 {[%clk 0:01:02.7]} 37...
Ne6 {[%clk 0:00:09.2]} 38. Ke3 {[%clk 0:01:00.6]} 38... Rc1 {[%clk 0:00:08.5]}
39. g4 {[%clk 0:00:59.7]} 39... Rh1 {[%clk 0:00:08.4]} 40. Ra8+ {[%clk
0:00:51.6]} 40... Kg7 {[%clk 0:00:05.9]} 41. f5 {[%clk 0:00:51.5]} 41... gxf5
{[%clk 0:00:04.6]} 42. gxf5 {[%clk 0:00:52]} 42... Rxh3+ {[%clk 0:00:05.1]} 43.
Kf2 {[%clk 0:00:52.6]} 43... Nf4 {[%clk 0:00:05.1]} 44. Bf1 {[%clk 0:00:48.7]}
44... Nd3+ {[%clk 0:00:04.4]} 45. Kg1 {[%clk 0:00:44.4]} 45... Re3 {[%clk
0:00:04.2]} 46. Bxd3 {[%clk 0:00:41.6]} 46... Rxd3 {[%clk 0:00:05.1]} 47. Ra7
{[%clk 0:00:41.9]} 47... Rf3 {[%clk 0:00:02]} 48. f6+ {[%clk 0:00:33.1]} 48...
Kg6 {[%clk 0:00:02.3]} 49. Kg2 {[%clk 0:00:33]} 49... Re3 {[%clk 0:00:02.7]} 50.
Re7 {[%clk 0:00:33.1]} 50... h4 {[%clk 0:00:02.4]} 51. Kf2 {[%clk 0:00:33.3]}
51... Re4 {[%clk 0:00:01.1]} 52. Kf3 {[%clk 0:00:33]} 52... Re1 {[%clk
0:00:01.5]} 53. Re8 {[%clk 0:00:33.5]} 53... h3 {[%clk 0:00:01.5]} 54. Kg3
{[%clk 0:00:33.4]} 54... Kf5 {[%clk 0:00:01.6]} 55. Re7 {[%clk 0:00:31.1]} 55...
Rxe5 {[%clk 0:00:02.3]} 56. Rxf7 {[%clk 0:00:30.7]} 56... Kg6 {[%clk 0:00:02.6]}
57. Rf8 {[%clk 0:00:30.2]} 57... Rf5 {[%clk 0:00:03]} 58. Kxh3 {[%clk 0:00:27]}
58... Rxf6 {[%clk 0:00:03.3]} 59. Rxf6+ {[%clk 0:00:26.8]} 59... Kxf6 {[%clk
0:00:03.7]} 1/2-1/2

[Event "Early-Titled-Tuesday-Blitz-October-10-2023"]
[Site "Chess.com"]
[Date "2023.10.10"]
[Round "1"]
[White "RobertoJBM"]
[Black "JoliyRoger"]
[Result "1/2-1/2"]
[WhiteElo "2818"]
[BlackElo "2468"]
[TimeControl "180+1"]
[EndTime "8:07:58 PDT"]
[Termination "Game drawn by stalemate"]

1. d4 {[%clk 0:02:57.9]} 1... Nf6 {[%clk 0:02:59]} 2. Nf3 {[%clk 0:02:57.5]}
2... e6 {[%clk 0:02:53.3]} 3. e3 {[%clk 0:02:58.4]} 3... b6 {[%clk 0:02:53.7]}
4. Bd3 {[%clk 0:02:58.4]} 4... Bb7 {[%clk 0:02:53.7]} 5. O-O {[%clk 0:02:59.3]}
5... Be7 {[%clk 0:02:53.5]} 6. Qe2 {[%clk 0:02:59.1]} 6... d5 {[%clk 0:02:47.1]}
7. Nbd2 {[%clk 0:02:58.7]} 7... Nbd7 {[%clk 0:02:38.3]} 8. e4 {[%clk 0:02:57.5]}
8... dxe4 {[%clk 0:02:37.8]} 9. Nxe4 {[%clk 0:02:58.4]} 9... O-O {[%clk
0:02:37.1]} 10. Rd1 {[%clk 0:02:57.6]} 10... Rc8 {[%clk 0:02:19.4]} 11. Bg5
{[%clk 0:02:44.6]} 11... h6 {[%clk 0:02:04.3]} 12. Bh4 {[%clk 0:02:41.1]} 12...
Nxe4 {[%clk 0:01:54.3]} 13. Bxe7 {[%clk 0:02:40.8]} 13... Qxe7 {[%clk
0:01:54.2]} 14. Bxe4 {[%clk 0:02:40.4]} 14... Bxe4 {[%clk 0:01:55.1]} 15. Qxe4
{[%clk 0:02:40.9]} 15... Nf6 {[%clk 0:01:52.1]} 16. Qc6 {[%clk 0:02:27]} 16...
Qd6 {[%clk 0:01:47.3]} 17. Ne5 {[%clk 0:02:25.3]} 17... a5 {[%clk 0:01:40.9]}
18. c3 {[%clk 0:02:18.1]} 18... Rfd8 {[%clk 0:01:36.9]} 19. Re1 {[%clk
0:02:08.7]} 19... Kf8 {[%clk 0:01:29.5]} 20. Rad1 {[%clk 0:01:59.7]} 20... Qxc6
{[%clk 0:01:26.9]} 21. Nxc6 {[%clk 0:01:59.7]} 21... Rd6 {[%clk 0:01:27.6]} 22.
Ne5 {[%clk 0:01:52.5]} 22... Ke7 {[%clk 0:01:20.7]} 23. f4 {[%clk 0:01:49]}
23... c5 {[%clk 0:01:10.2]} 24. dxc5 {[%clk 0:01:47.3]} 24... Rxd1 {[%clk
0:01:10.8]} 25. Rxd1 {[%clk 0:01:48.2]} 25... Rxc5 {[%clk 0:01:10.9]} 26. c4
{[%clk 0:01:36.4]} 26... g5 {[%clk 0:01:07.7]} 27. g3 {[%clk 0:01:31.9]} 27...
Rc7 {[%clk 0:01:02]} 28. Kf2 {[%clk 0:01:27]} 28... gxf4 {[%clk 0:00:41.7]} 29.
gxf4 {[%clk 0:01:27.9]} 29... Nd7 {[%clk 0:00:42.2]} 30. Nxd7 {[%clk 0:01:19.9]}
30... Rxd7 {[%clk 0:00:42.7]} 31. Rxd7+ {[%clk 0:01:19.9]} 31... Kxd7 {[%clk
0:00:43.6]} 32. Ke3 {[%clk 0:01:17.3]} 32... Kd6 {[%clk 0:00:42.7]} 33. Kd4
{[%clk 0:01:09.1]} 33... f6 {[%clk 0:00:42.6]} 34. b3 {[%clk 0:01:03.9]} 34...
Kc6 {[%clk 0:00:41.9]} 35. a3 {[%clk 0:01:03]} 35... Kd6 {[%clk 0:00:42.2]} 36.
b4 {[%clk 0:01:02.6]} 36... axb4 {[%clk 0:00:42.7]} 37. axb4 {[%clk 0:01:03.5]}
37... Kc6 {[%clk 0:00:42.6]} 38. Ke4 {[%clk 0:01:02.5]} 38... Kd6 {[%clk
0:00:41.8]} 39. Kf3 {[%clk 0:01:02.5]} 39... e5 {[%clk 0:00:13.7]} 40. Ke4
{[%clk 0:00:55.9]} 40... Ke6 {[%clk 0:00:12.6]} 41. fxe5 {[%clk 0:00:54.8]}
41... fxe5 {[%clk 0:00:12.9]} 42. c5 {[%clk 0:00:53.6]} 42... bxc5 {[%clk
0:00:08.9]} 43. bxc5 {[%clk 0:00:54.5]} 43... Kd7 {[%clk 0:00:03.5]} 44. Kxe5
{[%clk 0:00:54.2]} 44... Kc6 {[%clk 0:00:04.1]} 45. Kd4 {[%clk 0:00:54.1]} 45...
h5 {[%clk 0:00:04.7]} 46. h4 {[%clk 0:00:54.1]} 46... Kc7 {[%clk 0:00:04.1]} 47.
Ke5 {[%clk 0:00:40.3]} 47... Kc6 {[%clk 0:00:04.3]} 48. Kd4 {[%clk 0:00:23]}
48... Kc7 {[%clk 0:00:04.5]} 49. Kd5 {[%clk 0:00:23.9]} 49... Kd7 {[%clk
0:00:05.1]} 50. c6+ {[%clk 0:00:24.6]} 50... Kc7 {[%clk 0:00:05.9]} 51. Kc5
{[%clk 0:00:25.3]} 51... Kc8 {[%clk 0:00:06.5]} 52. Kd6 {[%clk 0:00:26.2]} 52...
Kd8 {[%clk 0:00:07.2]} 53. Ke6 {[%clk 0:00:26.8]} 53... Kc7 {[%clk 0:00:07.5]}
54. Kf6 {[%clk 0:00:27.3]} 54... Kxc6 {[%clk 0:00:08.2]} 55. Kg5 {[%clk
0:00:27.4]} 55... Kd7 {[%clk 0:00:08.9]} 56. Kxh5 {[%clk 0:00:28.3]} 56... Ke7
{[%clk 0:00:09.6]} 57. Kg6 {[%clk 0:00:28.7]} 57... Kf8 {[%clk 0:00:10.1]} 58.
Kh7 {[%clk 0:00:28.7]} 58... Kf7 {[%clk 0:00:10.5]} 59. h5 {[%clk 0:00:23.3]}
59... Kf8 {[%clk 0:00:09.1]} 60. h6 {[%clk 0:00:23]} 60... Kf7 {[%clk
0:00:09.4]} 61. Kh8 {[%clk 0:00:22.8]} 61... Kf8 {[%clk 0:00:09.6]} 62. h7
{[%clk 0:00:22.3]} 62... Kf7 {[%clk 0:00:10.3]} 1/2-1/2

[Event "Early-Titled-Tuesday-Blitz-October-10-2023"]
[Site "Chess.com"]
[Date "2023.10.10"]
[Round "1"]
[White "IMSlavin"]
[Black "Aslanov_Umid"]
[Result "0-1"]
[WhiteElo "2226"]
[BlackElo "2586"]
[TimeControl "180+1"]
[EndTime "8:07:59 PDT"]
[Termination "Aslanov_Umid won on time"]

1. e4 {[%clk 0:02:57.4]} 1... c5 {[%clk 0:03:00.2]} 2. g3 {[%clk 0:02:56.8]}
2... d6 {[%clk 0:03:00.2]} 3. Bg2 {[%clk 0:02:56]} 3... Nc6 {[%clk 0:02:59.4]}
4. Ne2 {[%clk 0:02:53.3]} 4... Nf6 {[%clk 0:02:59.6]} 5. Nbc3 {[%clk 0:02:48.1]}
5... Bg4 {[%clk 0:02:48.3]} 6. h3 {[%clk 0:02:45.7]} 6... Bxe2 {[%clk
0:02:48.4]} 7. Nxe2 {[%clk 0:02:45.7]} 7... e5 {[%clk 0:02:47.1]} 8. O-O {[%clk
0:02:42.9]} 8... Be7 {[%clk 0:02:47.1]} 9. c3 {[%clk 0:02:42.1]} 9... O-O {[%clk
0:02:44.4]} 10. d4 {[%clk 0:02:40.8]} 10... exd4 {[%clk 0:02:44.3]} 11. cxd4
{[%clk 0:02:40.2]} 11... Re8 {[%clk 0:02:45.2]} 12. Be3 {[%clk 0:02:32.8]} 12...
Rc8 {[%clk 0:02:40.8]} 13. a3 {[%clk 0:02:31.6]} 13... Qb6 {[%clk 0:02:37.2]}
14. dxc5 {[%clk 0:02:28.3]} 14... dxc5 {[%clk 0:02:36.2]} 15. b4 {[%clk
0:02:28.1]} 15... Ne5 {[%clk 0:02:30.8]} 16. Rc1 {[%clk 0:02:09.7]} 16... Red8
{[%clk 0:02:25.9]} 17. Qa4 {[%clk 0:02:04.6]} 17... Nd3 {[%clk 0:02:02.8]} 18.
Rc3 {[%clk 0:01:48.9]} 18... Qe6 {[%clk 0:01:42.6]} 19. Qc2 {[%clk 0:01:33.8]}
19... cxb4 {[%clk 0:01:34.4]} 20. Rxc8 {[%clk 0:01:33.3]} 20... Qxc8 {[%clk
0:01:35.3]} 21. Qa4 {[%clk 0:01:22.1]} 21... a6 {[%clk 0:01:24.5]} 22. axb4
{[%clk 0:01:19.8]} 22... b5 {[%clk 0:01:22.1]} 23. Qa1 {[%clk 0:01:14.7]} 23...
Nxb4 {[%clk 0:01:19.2]} 24. Rc1 {[%clk 0:01:12.2]} 24... Qe6 {[%clk 0:01:12.5]}
25. Nf4 {[%clk 0:01:06.3]} 25... Qb3 {[%clk 0:00:59.6]} 26. e5 {[%clk
0:01:03.4]} 26... Nfd5 {[%clk 0:00:56.4]} 27. Nxd5 {[%clk 0:01:02.4]} 27... Nxd5
{[%clk 0:00:57.3]} 28. Bd4 {[%clk 0:00:51.5]} 28... Nb4 {[%clk 0:00:53.4]} 29.
Qa5 {[%clk 0:00:42.5]} 29... Rxd4 {[%clk 0:00:47.7]} 30. Rc8+ {[%clk 0:00:39.1]}
30... Bf8 {[%clk 0:00:48.2]} 31. Qb6 {[%clk 0:00:32.7]} 31... Qd1+ {[%clk
0:00:47.8]} 32. Kh2 {[%clk 0:00:32.5]} 32... Rc4 {[%clk 0:00:24.1]} 33. Ra8
{[%clk 0:00:26.4]} 33... Qd7 {[%clk 0:00:22.1]} 34. Qb8 {[%clk 0:00:20.3]} 34...
Qe7 {[%clk 0:00:22.5]} 35. Ra7 {[%clk 0:00:17.2]} 35... Qc5 {[%clk 0:00:23.1]}
36. Qb7 {[%clk 0:00:15.1]} 36... Rc2 {[%clk 0:00:16.6]} 37. Qxf7+ {[%clk
0:00:14.4]} 37... Kh8 {[%clk 0:00:17.3]} 38. e6 {[%clk 0:00:12.9]} 38... Rxf2
{[%clk 0:00:17.6]} 39. Qc7 {[%clk 0:00:08.2]} 39... Rxg2+ {[%clk 0:00:15.9]} 40.
Kxg2 {[%clk 0:00:08]} 40... Qd5+ {[%clk 0:00:16.8]} 41. Kf2 {[%clk 0:00:08.2]}
41... Qxe6 {[%clk 0:00:15.4]} 42. Ra8 {[%clk 0:00:06.6]} 42... Nd3+ {[%clk
0:00:15.5]} 43. Kf3 {[%clk 0:00:05.9]} 43... Ne5+ {[%clk 0:00:15.1]} 44. Kf2
{[%clk 0:00:03.3]} 44... Qf5+ {[%clk 0:00:15.5]} 45. Ke1 {[%clk 0:00:02.6]}
45... Qe4+ {[%clk 0:00:15.3]} 46. Kd1 {[%clk 0:00:02]} 46... Qxa8 {[%clk
0:00:15.6]} 47. Qxe5 {[%clk 0:00:02.5]} 47... Qd8+ {[%clk 0:00:15.9]} 0-1